[Event "Titled Tuesday Blitz May 17 Late 2022"]
[White "Schekachikhin, Maksim"]
[Black "Jones, Gawain C B"]
[WhiteFideId "24177830"]
[BlackFideId "409561"]
[WhiteElo "2239"]
[BlackElo "2657"]
[Result "0-1"]
[Round "05"]
[TimeControl "180+1"]
[Date "2022.05.17"]
[WhiteClock "0:01:37"]
[BlackClock "0:01:41"]

1. b3 {[%clk 0:03:00]}  a5 {[%clk 0:02:58]} 2. c4 {[%clk 0:02:58]}  a4 {[%clk 0:02:56]} 3. Bb2 {[%clk 0:02:57]}  e6 {[%clk 0:02:51]} 4. Nf3 {[%clk 0:02:46]}  axb3 {[%clk 0:02:48]} 5. axb3 {[%clk 0:02:46]}  Rxa1 {[%clk 0:02:49]} 6. Bxa1 {[%clk 0:02:47]}  d5 {[%clk 0:02:48]} 7. e3 {[%clk 0:02:47]}  Nc6 {[%clk 0:02:48]} 8. Be2 {[%clk 0:02:46]}  Nf6 {[%clk 0:02:46]} 9. O-O {[%clk 0:02:46]}  Bd6 {[%clk 0:02:44]} 10. Nc3 {[%clk 0:02:44]}  O-O {[%clk 0:02:43]} 11. Qb1 {[%clk 0:02:39]}  Nb4 {[%clk 0:02:34]} 12. Nb5 {[%clk 0:02:34]}  Be7 {[%clk 0:02:32]} 13. Ng5 {[%clk 0:02:33]}  h6 {[%clk 0:02:23]} 14. Bxf6 {[%clk 0:02:32]}  hxg5 {[%clk 0:02:24]} 15. Bc3 {[%clk 0:02:26]}  c6 {[%clk 0:02:23]} 16. Nd4 {[%clk 0:02:23]}  f5 {[%clk 0:02:19]} 17. Nc2 {[%clk 0:02:21]}  Nxc2 {[%clk 0:02:07]} 18. Qxc2 {[%clk 0:02:22]}  Bd6 {[%clk 0:02:03]} 19. Qb2 {[%clk 0:02:18]}  Qc7 {[%clk 0:01:59]} 20. h3 {[%clk 0:02:10]}  e5 {[%clk 0:01:59]} 21. cxd5 {[%clk 0:02:09]}  cxd5 {[%clk 0:01:59]} 22. Rc1 {[%clk 0:02:10]}  Qe7 {[%clk 0:01:57]} 23. b4 {[%clk 0:02:04]}  d4 {[%clk 0:01:57]} 24. exd4 {[%clk 0:02:03]}  exd4 {[%clk 0:01:57]} 25. Bc4+ {[%clk 0:02:03]}  Be6 {[%clk 0:01:57]} 26. Bxd4 {[%clk 0:02:03]}  Bxc4 {[%clk 0:01:55]} 27. Bxg7 {[%clk 0:01:45]}  Re8 {[%clk 0:01:48]} 28. g3 {[%clk 0:01:37]}  Bd5 {[%clk 0:01:41]} 0-1


[Site "https://www.chess.com"]

[Event "Titled Tuesday Blitz May 17 Late 2022"]
[White "Shuvalova, Polina"]
[Black "Risteski, Emil"]
[WhiteFideId "24171760"]
[BlackFideId "15005267"]
[WhiteElo "2355"]
[BlackElo "2070"]
[Result "0-1"]
[Round "05"]
[TimeControl "180+1"]
[Date "2022.05.17"]
[WhiteClock "0:00:25"]
[BlackClock "0:00:09"]

1. e4 {[%clk 0:03:00]}  d6 {[%clk 0:02:59]} 2. d4 {[%clk 0:02:59]}  Nf6 {[%clk 0:02:59]} 3. Nc3 {[%clk 0:02:53]}  e5 {[%clk 0:02:59]} 4. Nf3 {[%clk 0:02:51]}  Nbd7 {[%clk 0:02:59]} 5. Bc4 {[%clk 0:02:51]}  Be7 {[%clk 0:02:59]} 6. O-O {[%clk 0:02:51]}  O-O {[%clk 0:03:00]} 7. Re1 {[%clk 0:02:52]}  c6 {[%clk 0:03:00]} 8. a4 {[%clk 0:02:52]}  a5 {[%clk 0:03:00]} 9. Ba2 {[%clk 0:02:52]}  exd4 {[%clk 0:02:55]} 10. Nxd4 {[%clk 0:02:51]}  Nc5 {[%clk 0:02:54]} 11. h3 {[%clk 0:02:49]}  Re8 {[%clk 0:02:53]} 12. Bf4 {[%clk 0:02:44]}  Bf8 {[%clk 0:02:50]} 13. Qf3 {[%clk 0:02:44]}  Ne6 {[%clk 0:02:40]} 14. Nxe6 {[%clk 0:02:35]}  Bxe6 {[%clk 0:02:40]} 15. Bxe6 {[%clk 0:02:35]}  Rxe6 {[%clk 0:02:41]} 16. Rad1 {[%clk 0:02:35]}  Qe8 {[%clk 0:02:39]} 17. Re3 {[%clk 0:02:27]}  Nd7 {[%clk 0:02:06]} 18. Qg3 {[%clk 0:02:25]}  Ne5 {[%clk 0:02:06]} 19. b3 {[%clk 0:02:19]}  Rg6 {[%clk 0:01:49]} 20. Qh2 {[%clk 0:02:19]}  Qe6 {[%clk 0:01:35]} 21. Ne2 {[%clk 0:02:18]}  Qf6 {[%clk 0:01:25]} 22. Bg3 {[%clk 0:01:56]}  Rh6 {[%clk 0:01:24]} 23. Bxe5 {[%clk 0:01:46]}  dxe5 {[%clk 0:01:21]} 24. Rf3 {[%clk 0:01:46]}  Qe7 {[%clk 0:01:16]} 25. Ng3 {[%clk 0:01:46]}  Re6 {[%clk 0:01:03]} 26. Nf5 {[%clk 0:01:45]}  Qe8 {[%clk 0:01:02]} 27. Qg3 {[%clk 0:01:44]}  g6 {[%clk 0:01:03]} 28. Rfd3 {[%clk 0:01:40]}  Kh8 {[%clk 0:00:59]} 29. Ne3 {[%clk 0:01:39]}  Bc5 {[%clk 0:00:58]} 30. Nc4 {[%clk 0:01:35]}  b5 {[%clk 0:00:51]} 31. Nd6 {[%clk 0:01:24]}  Qe7 {[%clk 0:00:49]} 32. axb5 {[%clk 0:00:55]}  Rxd6 {[%clk 0:00:47]} 33. Rxd6 {[%clk 0:00:52]}  Bxd6 {[%clk 0:00:46]} 34. bxc6 {[%clk 0:00:52]}  Rc8 {[%clk 0:00:45]} 35. Qc3 {[%clk 0:00:51]}  Bb4 {[%clk 0:00:39]} 36. Qc4 {[%clk 0:00:49]}  Qe6 {[%clk 0:00:38]} 37. Qa6 {[%clk 0:00:42]}  Rxc6 {[%clk 0:00:29]} 38. Rd8+ {[%clk 0:00:41]}  Kg7 {[%clk 0:00:29]} 39. Qe2 {[%clk 0:00:36]}  Rd6 {[%clk 0:00:25]} 40. Ra8 {[%clk 0:00:34]}  Qd7 {[%clk 0:00:21]} 41. g3 {[%clk 0:00:31]}  Rd1+ {[%clk 0:00:21]} 42. Kg2 {[%clk 0:00:31]}  Rd2 {[%clk 0:00:21]} 43. Qc4 {[%clk 0:00:29]}  Qd4 {[%clk 0:00:20]} 44. Qxd4 {[%clk 0:00:28]}  exd4 {[%clk 0:00:21]} 45. Rc8 {[%clk 0:00:28]}  Bc3 {[%clk 0:00:21]} 46. Kf3 {[%clk 0:00:27]}  Rxc2 {[%clk 0:00:20]} 47. e5 {[%clk 0:00:26]}  Rb2 {[%clk 0:00:17]} 48. Ke4 {[%clk 0:00:26]}  Rxb3 {[%clk 0:00:17]} 49. f4 {[%clk 0:00:27]}  a4 {[%clk 0:00:17]} 50. Rc7 {[%clk 0:00:28]}  Rb6 {[%clk 0:00:16]} 51. g4 {[%clk 0:00:28]}  a3 {[%clk 0:00:16]} 52. Ra7 {[%clk 0:00:28]}  Bb2 {[%clk 0:00:16]} 53. f5 {[%clk 0:00:28]}  gxf5+ {[%clk 0:00:17]} 54. gxf5 {[%clk 0:00:29]}  d3 {[%clk 0:00:17]} 55. e6 {[%clk 0:00:29]}  d2 {[%clk 0:00:13]} 56. Rxf7+ {[%clk 0:00:29]}  Kg8 {[%clk 0:00:13]} 57. Rd7 {[%clk 0:00:29]}  a2 {[%clk 0:00:11]} 58. e7 {[%clk 0:00:29]}  Kf7 {[%clk 0:00:11]} 59. Rxd2 {[%clk 0:00:25]}  a1=Q {[%clk 0:00:10]} 60. Rd8 {[%clk 0:00:25]}  Qe1+ {[%clk 0:00:09]} 61. Kf3 {[%clk 0:00:25]}  Qxe7 {[%clk 0:00:09]} 0-1


[Site "https://www.chess.com"]

[Event "Titled Tuesday Blitz May 17 Late 2022"]
[White "Sjugirov, Sanan"]
[Black "Rychagov, Andrey"]
[WhiteFideId "4189302"]
[BlackFideId "4119932"]
[WhiteElo "2602"]
[BlackElo "2500"]
[Result "1/2-1/2"]
[Round "05"]
[TimeControl "180+1"]
[Date "2022.05.17"]
[WhiteClock "0:00:02"]
[BlackClock "0:00:02"]

1. e4 {[%clk 0:03:00]}  e6 {[%clk 0:02:59]} 2. d4 {[%clk 0:02:59]}  d5 {[%clk 0:02:59]} 3. e5 {[%clk 0:02:59]}  c5 {[%clk 0:02:59]} 4. c3 {[%clk 0:02:59]}  Qb6 {[%clk 0:02:58]} 5. Nf3 {[%clk 0:02:59]}  Nc6 {[%clk 0:02:58]} 6. a3 {[%clk 0:02:59]}  Nh6 {[%clk 0:02:56]} 7. b4 {[%clk 0:02:50]}  cxd4 {[%clk 0:02:56]} 8. cxd4 {[%clk 0:02:51]}  Nf5 {[%clk 0:02:55]} 9. Be3 {[%clk 0:02:47]}  Bd7 {[%clk 0:02:46]} 10. Bd3 {[%clk 0:02:40]}  Be7 {[%clk 0:02:46]} 11. Bxf5 {[%clk 0:02:35]}  exf5 {[%clk 0:02:45]} 12. Nc3 {[%clk 0:02:31]}  Be6 {[%clk 0:02:45]} 13. O-O {[%clk 0:02:26]}  O-O {[%clk 0:02:44]} 14. Qd3 {[%clk 0:02:20]}  h6 {[%clk 0:02:40]} 15. Na4 {[%clk 0:02:14]}  Qd8 {[%clk 0:02:38]} 16. Nc5 {[%clk 0:02:08]}  b6 {[%clk 0:02:35]} 17. Nxe6 {[%clk 0:01:56]}  fxe6 {[%clk 0:02:35]} 18. Rfc1 {[%clk 0:01:56]}  Rc8 {[%clk 0:02:28]} 19. Bd2 {[%clk 0:01:40]}  Qd7 {[%clk 0:02:11]} 20. b5 {[%clk 0:01:40]}  Nb8 {[%clk 0:02:01]} 21. a4 {[%clk 0:01:39]}  Rxc1+ {[%clk 0:01:58]} 22. Rxc1 {[%clk 0:01:40]}  Rc8 {[%clk 0:01:58]} 23. Rc3 {[%clk 0:01:37]}  Qb7 {[%clk 0:01:40]} 24. Ne1 {[%clk 0:01:28]}  Kf7 {[%clk 0:01:33]} 25. Qc2 {[%clk 0:01:25]}  Rxc3 {[%clk 0:01:32]} 26. Qxc3 {[%clk 0:01:26]}  Bd8 {[%clk 0:01:24]} 27. Nd3 {[%clk 0:01:20]}  Qc7 {[%clk 0:01:24]} 28. Qb3 {[%clk 0:01:18]}  Be7 {[%clk 0:01:10]} 29. h3 {[%clk 0:01:06]}  a5 {[%clk 0:01:05]} 30. g4 {[%clk 0:00:52]}  fxg4 {[%clk 0:01:00]} 31. hxg4 {[%clk 0:00:52]}  g5 {[%clk 0:00:59]} 32. Kg2 {[%clk 0:00:45]}  Nd7 {[%clk 0:00:58]} 33. f4 {[%clk 0:00:44]}  gxf4 {[%clk 0:00:56]} 34. Nxf4 {[%clk 0:00:45]}  Nf8 {[%clk 0:00:41]} 35. Nh5 {[%clk 0:00:25]}  Bg5 {[%clk 0:00:27]} 36. Qf3+ {[%clk 0:00:23]}  Ke8 {[%clk 0:00:21]} 37. Bxg5 {[%clk 0:00:20]}  hxg5 {[%clk 0:00:17]} 38. Nf6+ {[%clk 0:00:20]}  Ke7 {[%clk 0:00:12]} 39. Ng8+ {[%clk 0:00:13]}  Ke8 {[%clk 0:00:12]} 40. Nf6+ {[%clk 0:00:08]}  Ke7 {[%clk 0:00:12]} 41. Qa3+ {[%clk 0:00:04]}  Kf7 {[%clk 0:00:11]} 42. Qf3 {[%clk 0:00:03]}  Qc2+ {[%clk 0:00:11]} 43. Kg3 {[%clk 0:00:03]}  Ke7 {[%clk 0:00:10]} 44. Ng8+ {[%clk 0:00:03]}  Ke8 {[%clk 0:00:10]} 45. Nh6 {[%clk 0:00:02]}  Qg6 {[%clk 0:00:08]} 46. Qf6 {[%clk 0:00:02]}  Qd3+ {[%clk 0:00:05]} 47. Kg2 {[%clk 0:00:02]}  Qe2+ {[%clk 0:00:04]} 48. Kg3 {[%clk 0:00:02]}  Qd3+ {[%clk 0:00:04]} 49. Kg2 {[%clk 0:00:03]}  Qe2+ {[%clk 0:00:04]} 50. Qf2 {[%clk 0:00:02]}  Qe4+ {[%clk 0:00:04]} 51. Kh2 {[%clk 0:00:02]}  Qg6 {[%clk 0:00:03]} 52. Qf6 {[%clk 0:00:02]}  Qc2+ {[%clk 0:00:02]} 53. Kg3 {[%clk 0:00:02]}  Qd3+ {[%clk 0:00:02]} 1/2-1/2


[Site "https://www.chess.com"]

[Event "Titled Tuesday Blitz May 17 Late 2022"]
[White "Solon, Nathan"]
[Black "Stevens, Christian"]
[WhiteFideId "2017229"]
[BlackFideId "2604450"]
[WhiteElo "2575"]
[BlackElo "2459"]
[Result "1-0"]
[Round "05"]
[TimeControl "180+1"]
[Date "2022.05.17"]
[WhiteClock "0:00:33"]
[BlackClock "0:00:00"]

1. d4 {[%clk 0:03:00]}  Nf6 {[%clk 0:02:42]} 2. Nc3 {[%clk 0:03:00]}  d5 {[%clk 0:02:40]} 3. Bf4 {[%clk 0:03:00]}  e6 {[%clk 0:02:25]} 4. Nb5 {[%clk 0:03:00]}  Bb4+ {[%clk 0:02:05]} 5. c3 {[%clk 0:02:58]}  Ba5 {[%clk 0:02:06]} 6. e3 {[%clk 0:02:45]}  O-O {[%clk 0:01:58]} 7. Nf3 {[%clk 0:02:43]}  a6 {[%clk 0:01:52]} 8. Na3 {[%clk 0:02:43]}  Nbd7 {[%clk 0:01:44]} 9. Bd3 {[%clk 0:02:41]}  c6 {[%clk 0:01:32]} 10. O-O {[%clk 0:02:39]}  Bc7 {[%clk 0:01:32]} 11. Nc2 {[%clk 0:02:34]}  Re8 {[%clk 0:01:21]} 12. Ne5 {[%clk 0:01:56]}  Nxe5 {[%clk 0:01:13]} 13. Bxe5 {[%clk 0:01:56]}  Nd7 {[%clk 0:01:07]} 14. f4 {[%clk 0:01:47]}  g6 {[%clk 0:00:41]} 15. Bxc7 {[%clk 0:01:38]}  Qxc7 {[%clk 0:00:41]} 16. e4 {[%clk 0:01:38]}  dxe4 {[%clk 0:00:39]} 17. Bxe4 {[%clk 0:01:39]}  c5 {[%clk 0:00:35]} 18. Qf3 {[%clk 0:01:33]}  Nf6 {[%clk 0:00:31]} 19. Rad1 {[%clk 0:01:29]}  Nxe4 {[%clk 0:00:28]} 20. Qxe4 {[%clk 0:01:30]}  Bd7 {[%clk 0:00:27]} 21. Qe5 {[%clk 0:01:28]}  Rac8 {[%clk 0:00:20]} 22. Qxc7 {[%clk 0:01:27]}  Rxc7 {[%clk 0:00:18]} 23. dxc5 {[%clk 0:01:27]}  Bb5 {[%clk 0:00:19]} 24. Rfe1 {[%clk 0:01:24]}  Rxc5 {[%clk 0:00:19]} 25. Nd4 {[%clk 0:01:22]}  Rec8 {[%clk 0:00:17]} 26. Kf2 {[%clk 0:01:17]}  Ba4 {[%clk 0:00:16]} 27. Rd2 {[%clk 0:01:15]}  Be8 {[%clk 0:00:13]} 28. Re3 {[%clk 0:01:14]}  R5c7 {[%clk 0:00:12]} 29. Nf3 {[%clk 0:01:12]}  Bc6 {[%clk 0:00:11]} 30. Ne5 {[%clk 0:01:11]}  Bd5 {[%clk 0:00:12]} 31. a3 {[%clk 0:00:55]}  Kg7 {[%clk 0:00:12]} 32. g4 {[%clk 0:00:52]}  h6 {[%clk 0:00:10]} 33. h4 {[%clk 0:00:50]}  f6 {[%clk 0:00:07]} 34. Nf3 {[%clk 0:00:48]}  Kf7 {[%clk 0:00:05]} 35. Nd4 {[%clk 0:00:48]}  Rc4 {[%clk 0:00:04]} 36. Rde2 {[%clk 0:00:46]}  Re8 {[%clk 0:00:04]} 37. Kg3 {[%clk 0:00:46]}  Rc7 {[%clk 0:00:04]} 38. b3 {[%clk 0:00:41]}  Rce7 {[%clk 0:00:03]} 39. c4 {[%clk 0:00:41]}  e5 {[%clk 0:00:03]} 40. fxe5 {[%clk 0:00:40]}  Rxe5 {[%clk 0:00:01]} 41. Rxe5 {[%clk 0:00:39]}  fxe5 {[%clk 0:00:02]} 42. cxd5 {[%clk 0:00:33]}  exd4 {[%clk 0:00:02]} 43. Rxe8 {[%clk 0:00:33]}  Kxe8 {[%clk 0:00:02]} 44. Kf4 {[%clk 0:00:34]}  Ke7 {[%clk 0:00:01]} 45. Ke4 {[%clk 0:00:33]}  Kf6 {[%clk 0:00:00]} 46. Kxd4 {[%clk 0:00:33]} 1-0


[Site "https://www.chess.com"]

[Event "Titled Tuesday Blitz May 17 Late 2022"]
[White "Stoleriu, George"]
[Black "Pap, Gyula"]
[WhiteFideId "1227505"]
[BlackFideId "725323"]
[WhiteElo "2194"]
[BlackElo "2553"]
[Result "0-1"]
[Round "05"]
[TimeControl "180+1"]
[Date "2022.05.17"]
[WhiteClock "0:00:20"]
[BlackClock "0:00:18"]

1. e4 {[%clk 0:02:53]}  c6 {[%clk 0:03:00]} 2. Nf3 {[%clk 0:02:50]}  d5 {[%clk 0:03:00]} 3. exd5 {[%clk 0:02:51]}  cxd5 {[%clk 0:03:00]} 4. Ne5 {[%clk 0:02:52]}  Nf6 {[%clk 0:02:56]} 5. d4 {[%clk 0:02:52]}  g6 {[%clk 0:02:54]} 6. Bb5+ {[%clk 0:02:52]}  Nbd7 {[%clk 0:02:53]} 7. O-O {[%clk 0:02:52]}  Bg7 {[%clk 0:02:53]} 8. Nd2 {[%clk 0:02:48]}  O-O {[%clk 0:02:52]} 9. Ndf3 {[%clk 0:02:48]}  Ne4 {[%clk 0:02:40]} 10. c3 {[%clk 0:02:40]}  Ndf6 {[%clk 0:02:21]} 11. Bd3 {[%clk 0:02:34]}  Bf5 {[%clk 0:02:21]} 12. Bf4 {[%clk 0:02:32]}  Nh5 {[%clk 0:02:08]} 13. Be3 {[%clk 0:01:21]}  f6 {[%clk 0:02:09]} 14. g4 {[%clk 0:01:21]}  fxe5 {[%clk 0:02:09]} 15. gxf5 {[%clk 0:01:21]}  Rxf5 {[%clk 0:02:07]} 16. dxe5 {[%clk 0:01:19]}  e6 {[%clk 0:01:41]} 17. Bxe4 {[%clk 0:01:14]}  dxe4 {[%clk 0:01:41]} 18. Qxd8+ {[%clk 0:01:15]}  Rxd8 {[%clk 0:01:41]} 19. Ng5 {[%clk 0:01:16]}  Rxe5 {[%clk 0:01:32]} 20. Rad1 {[%clk 0:01:16]}  Rdd5 {[%clk 0:01:28]} 21. c4 {[%clk 0:01:07]}  Rxg5+ {[%clk 0:01:28]} 22. Bxg5 {[%clk 0:01:04]}  Rxg5+ {[%clk 0:01:29]} 23. Kh1 {[%clk 0:01:05]}  Rf5 {[%clk 0:01:13]} 24. Rd8+ {[%clk 0:00:55]}  Rf8 {[%clk 0:01:10]} 25. Rfd1 {[%clk 0:00:54]}  Nf6 {[%clk 0:01:01]} 26. Rxf8+ {[%clk 0:00:52]}  Kxf8 {[%clk 0:00:56]} 27. Rd8+ {[%clk 0:00:53]}  Ke7 {[%clk 0:00:56]} 28. Rb8 {[%clk 0:00:52]}  b6 {[%clk 0:00:56]} 29. Rb7+ {[%clk 0:00:52]}  Nd7 {[%clk 0:00:56]} 30. Rxa7 {[%clk 0:00:53]}  Bxb2 {[%clk 0:00:56]} 31. Rb7 {[%clk 0:00:51]}  Bd4 {[%clk 0:00:52]} 32. Kg2 {[%clk 0:00:50]}  Kd6 {[%clk 0:00:51]} 33. Ra7 {[%clk 0:00:50]}  h5 {[%clk 0:00:47]} 34. Ra8 {[%clk 0:00:46]}  g5 {[%clk 0:00:38]} 35. Rg8 {[%clk 0:00:43]}  g4 {[%clk 0:00:34]} 36. Rg5 {[%clk 0:00:42]}  Nf6 {[%clk 0:00:34]} 37. a4 {[%clk 0:00:41]}  h4 {[%clk 0:00:34]} 38. a5 {[%clk 0:00:40]}  h3+ {[%clk 0:00:34]} 39. Kf1 {[%clk 0:00:40]}  bxa5 {[%clk 0:00:34]} 40. Rxa5 {[%clk 0:00:41]}  Be5 {[%clk 0:00:30]} 41. Kg1 {[%clk 0:00:37]}  Nd7 {[%clk 0:00:29]} 42. Ra6+ {[%clk 0:00:36]}  Ke7 {[%clk 0:00:29]} 43. Ra7 {[%clk 0:00:37]}  Bd4 {[%clk 0:00:29]} 44. Rb7 {[%clk 0:00:37]}  Kd6 {[%clk 0:00:28]} 45. Kf1 {[%clk 0:00:34]}  Ne5 {[%clk 0:00:26]} 46. Kg1 {[%clk 0:00:21]}  Nd3 {[%clk 0:00:23]} 47. Rf7 {[%clk 0:00:20]}  Nxf2 {[%clk 0:00:20]} 48. Rxf2 {[%clk 0:00:15]}  Kc5 {[%clk 0:00:20]} 49. Kf1 {[%clk 0:00:15]}  Bxf2 {[%clk 0:00:20]} 50. Kxf2 {[%clk 0:00:16]}  Kxc4 {[%clk 0:00:20]} 51. Ke3 {[%clk 0:00:17]}  Kd5 {[%clk 0:00:19]} 52. Kf4 {[%clk 0:00:18]}  e3 {[%clk 0:00:18]} 53. Kxg4 {[%clk 0:00:19]}  e2 {[%clk 0:00:18]} 54. Kxh3 {[%clk 0:00:20]}  e1=Q {[%clk 0:00:18]} 0-1


[Site "https://www.chess.com"]

[Event "Titled Tuesday Blitz May 17 Late 2022"]
[White "Vasquez Schroeder, Rodrigo"]
[Black "Bortnyk, Olexandr"]
[WhiteFideId "3400042"]
[BlackFideId "14120828"]
[WhiteElo "2567"]
[BlackElo "2723"]
[Result "0-1"]
[Round "05"]
[TimeControl "180+1"]
[Date "2022.05.17"]
[WhiteClock "0:00:04"]
[BlackClock "0:00:16"]

1. e4 {[%clk 0:03:00]}  Nf6 {[%clk 0:02:59]} 2. d3 {[%clk 0:03:00]}  d5 {[%clk 0:02:59]} 3. Nd2 {[%clk 0:02:58]}  Nc6 {[%clk 0:02:54]} 4. Ngf3 {[%clk 0:02:53]}  e5 {[%clk 0:02:53]} 5. Be2 {[%clk 0:02:51]}  Bc5 {[%clk 0:02:53]} 6. c3 {[%clk 0:02:51]}  O-O {[%clk 0:02:50]} 7. b4 {[%clk 0:02:43]}  Bd6 {[%clk 0:02:50]} 8. Bb2 {[%clk 0:02:36]}  Re8 {[%clk 0:02:46]} 9. a3 {[%clk 0:02:36]}  Bg4 {[%clk 0:02:39]} 10. h3 {[%clk 0:02:34]}  Bh5 {[%clk 0:02:39]} 11. O-O {[%clk 0:02:34]}  Bg6 {[%clk 0:02:38]} 12. Qc2 {[%clk 0:02:32]}  Ne7 {[%clk 0:02:30]} 13. Rfe1 {[%clk 0:02:11]}  c6 {[%clk 0:02:17]} 14. Bf1 {[%clk 0:02:09]}  a5 {[%clk 0:02:05]} 15. exd5 {[%clk 0:01:47]}  Nexd5 {[%clk 0:02:04]} 16. c4 {[%clk 0:01:42]}  Nf4 {[%clk 0:02:03]} 17. Bxe5 {[%clk 0:01:39]}  axb4 {[%clk 0:02:00]} 18. axb4 {[%clk 0:01:33]}  Rxa1 {[%clk 0:01:59]} 19. Bxa1 {[%clk 0:01:28]}  Rxe1 {[%clk 0:01:59]} 20. Nxe1 {[%clk 0:01:28]}  Bxb4 {[%clk 0:01:58]} 21. Bc3 {[%clk 0:01:21]}  Bc5 {[%clk 0:01:50]} 22. Nb3 {[%clk 0:01:13]}  Bb6 {[%clk 0:01:51]} 23. Qd2 {[%clk 0:01:10]}  Ne6 {[%clk 0:01:48]} 24. Nf3 {[%clk 0:01:01]}  Nd7 {[%clk 0:01:42]} 25. d4 {[%clk 0:00:55]}  Nf6 {[%clk 0:01:40]} 26. Qe3 {[%clk 0:00:52]}  Bc2 {[%clk 0:01:21]} 27. Nbd2 {[%clk 0:00:33]}  h6 {[%clk 0:01:21]} 28. Bd3 {[%clk 0:00:29]}  Bxd3 {[%clk 0:01:03]} 29. Qxd3 {[%clk 0:00:29]}  Qa8 {[%clk 0:01:02]} 30. d5 {[%clk 0:00:24]}  Nf4 {[%clk 0:01:00]} 31. Qf1 {[%clk 0:00:20]}  N6h5 {[%clk 0:00:50]} 32. Kh2 {[%clk 0:00:15]}  cxd5 {[%clk 0:00:48]} 33. g3 {[%clk 0:00:16]}  Qa3 {[%clk 0:00:43]} 34. Nb1 {[%clk 0:00:15]}  Qb3 {[%clk 0:00:28]} 35. gxf4 {[%clk 0:00:15]}  Nxf4 {[%clk 0:00:29]} 36. cxd5 {[%clk 0:00:13]}  Qxd5 {[%clk 0:00:30]} 37. Ne1 {[%clk 0:00:06]}  Qf5 {[%clk 0:00:25]} 38. Nd2 {[%clk 0:00:03]}  Bc7 {[%clk 0:00:23]} 39. Qc4 {[%clk 0:00:04]}  Qxh3+ {[%clk 0:00:19]} 40. Kg1 {[%clk 0:00:04]}  Qg4+ {[%clk 0:00:19]} 41. Kf1 {[%clk 0:00:04]}  Qh3+ {[%clk 0:00:16]} 42. Kg1 {[%clk 0:00:05]}  Ne2+ {[%clk 0:00:15]} 43. Qxe2 {[%clk 0:00:04]}  Qh2+ {[%clk 0:00:15]} 44. Kf1 {[%clk 0:00:04]}  Qh1# {[%clk 0:00:16]} 0-1


[Site "https://www.chess.com"]

[Event "Titled Tuesday Blitz May 17 Late 2022"]
[White "Yuan, Qingyu"]
[Black "Omariev, Maksim"]
[WhiteFideId "8609772"]
[BlackFideId "4193423"]
[WhiteElo "2359"]
[BlackElo "2506"]
[Result "1-0"]
[Round "05"]
[TimeControl "180+1"]
[Date "2022.05.17"]
[WhiteClock "0:00:06"]
[BlackClock "0:00:02"]

1. e4 {[%clk 0:03:00]}  c5 {[%clk 0:03:00]} 2. Nf3 {[%clk 0:03:01]}  d6 {[%clk 0:03:00]} 3. Bb5+ {[%clk 0:03:01]}  Nd7 {[%clk 0:03:00]} 4. c4 {[%clk 0:03:01]}  Nf6 {[%clk 0:02:59]} 5. Nc3 {[%clk 0:03:02]}  a6 {[%clk 0:02:52]} 6. Ba4 {[%clk 0:03:01]}  g6 {[%clk 0:02:49]} 7. h3 {[%clk 0:03:01]}  Bg7 {[%clk 0:02:49]} 8. d3 {[%clk 0:03:02]}  O-O {[%clk 0:02:48]} 9. Be3 {[%clk 0:03:01]}  b6 {[%clk 0:02:09]} 10. a3 {[%clk 0:02:56]}  Bb7 {[%clk 0:02:07]} 11. O-O {[%clk 0:02:56]}  e6 {[%clk 0:02:03]} 12. Bf4 {[%clk 0:02:21]}  d5 {[%clk 0:01:57]} 13. Bd6 {[%clk 0:02:12]}  Re8 {[%clk 0:01:31]} 14. e5 {[%clk 0:01:40]}  Nh5 {[%clk 0:01:28]} 15. cxd5 {[%clk 0:01:40]}  exd5 {[%clk 0:01:27]} 16. d4 {[%clk 0:01:38]}  b5 {[%clk 0:01:18]} 17. Bc2 {[%clk 0:01:27]}  cxd4 {[%clk 0:00:40]} 18. Qxd4 {[%clk 0:01:26]}  Rc8 {[%clk 0:00:41]} 19. Bb3 {[%clk 0:01:21]}  Qb6 {[%clk 0:00:26]} 20. Qxb6 {[%clk 0:00:31]}  Nxb6 {[%clk 0:00:26]} 21. Rad1 {[%clk 0:00:31]}  Nc4 {[%clk 0:00:04]} 22. Nxd5 {[%clk 0:00:31]}  Bxd5 {[%clk 0:00:02]} 23. Rxd5 {[%clk 0:00:32]}  Nxb2 {[%clk 0:00:02]} 24. a4 {[%clk 0:00:19]}  bxa4 {[%clk 0:00:02]} 25. Ba2 {[%clk 0:00:20]}  Nf4 {[%clk 0:00:02]} 26. Rd2 {[%clk 0:00:16]}  Nc4 {[%clk 0:00:03]} 27. Bxc4 {[%clk 0:00:04]}  Rxc4 {[%clk 0:00:03]} 28. g3 {[%clk 0:00:03]}  Ne6 {[%clk 0:00:03]} 29. Ra1 {[%clk 0:00:03]}  Rec8 {[%clk 0:00:03]} 30. Kg2 {[%clk 0:00:03]}  Re4 {[%clk 0:00:02]} 31. Rda2 {[%clk 0:00:02]}  Rcc4 {[%clk 0:00:02]} 32. Nd2 {[%clk 0:00:02]}  Red4 {[%clk 0:00:01]} 33. Nxc4 {[%clk 0:00:03]}  Rxc4 {[%clk 0:00:02]} 34. Rxa4 {[%clk 0:00:03]}  Rxa4 {[%clk 0:00:02]} 35. Rxa4 {[%clk 0:00:04]}  Bf8 {[%clk 0:00:01]} 36. Rxa6 {[%clk 0:00:05]}  Bg7 {[%clk 0:00:01]} 37. Ra8+ {[%clk 0:00:05]}  Nf8 {[%clk 0:00:01]} 38. f4 {[%clk 0:00:06]}  h5 {[%clk 0:00:02]} 39. Kf3 {[%clk 0:00:06]} 1-0


[Site "https://www.chess.com"]